Cogmind - Beta 13 @@@ ROGUE MODE // 2024.06.07 @ 14:41:16 Player: BELIAL Result: Destroyed by H-66 Slayer with Gauss Rifle Performance ------------- Evolutions (5) 2500 Regions Visited (12) 2400 Robots Destroyed (124) 620 Value Destroyed (4324) 4324 Prototype IDs (13) 260 Alien Tech Used (0) 0 Bonus (3330) 3330 TOTAL SCORE: 13434 Bonus ------- High Alert Combat Kills 141 Follower Combat Kills 1889 Network Hubs Disabled 400 Met Zhirov 300 Built Enhanced Grunts 300 A7 Reached Mainframe 300 Cogmind --------- Core Integrity 0/1000 Matter 300/300 Energy 99/100 System Corruption 6% Temperature Cool (0) Movement Core (50) Location -5/Factory Parts ------- > --- POWER (2) -------- (None) > --- PROPULSION (5) --- (None) > --- UTILITY (8) ------ Enhanced Optical Array Enhanced Optical Array Advanced Signal Interpreter Hacking Suite > --- WEAPON (2) ------- (None) > --- INVENTORY (5) ---- Transmission Jammer Authchip [Device] Authchip [Processor] Peak State ------------ > --- POWER ------------ Micro Fission Core Micro Fission Core > --- PROPULSION ------- Cooled Cesium-ion Thruster Nuclear Pulse Array Nuclear Pulse Array > --- UTILITY ---------- Structural Scanner Enhanced Optical Array Enhanced Optical Array Advanced Signal Interpreter ECM Suite Improved Light Armor Plating Hacking Suite Authchip [Processor] > --- WEAPON ----------- KE Penetrator KE Penetrator > --- INVENTORY -------- Transmission Jammer Authchip [Device] Authchip [Processor] [Rating: 82] Favorites ----------- Power Micro Nuclear Core Engine Improved Ion Engine Power Core Micro Nuclear Core Reactor Cold Fusion Reactor Propulsion Improved VTOL Module Treads Armored Treads Leg Aluminum Leg Wheel Compact Wheel Hover Unit Gravmag System Flight Unit Improved VTOL Module Utility Signal Interpreter Device Structural Scanner Storage Small Storage Unit Processor Signal Interpreter Hackware Advanced Hacking Suite Protection Layered Light Armor Plating Weapon Pulse Rifle Energy Gun Pulse Rifle Ballistic Gun Light Assault Rifle Ballistic Cannon Light Cannon Launcher Rocket Launcher Impact Weapon Flail Slashing Weapon Power Sword Piercing Weapon Spear Build | -11 -10 -9 -9 -8 -8 -7 -6 -6 -6 -6 -6 -5 ------- Run | Yrd Mat Mat Min Mat Sto Fac Fac Ext Cet Arc Hub Fac Slots Evolved 10 | . . 2 . 2 . 2 2 . . . . 2 Power 1 | . . . . . . . . . . . . 1 Propulsion 3 | . . . . 1 . 1 . . . . . 1 Utility 6 | . . 2 . 1 . 1 2 . . . . . Weapon . | . . . . . . . . . . . . . Parts Attached 184 | 9 5 23 3 13 34 19 30 7 5 4 9 23 Power 19 | 1 2 3 . 2 1 3 . 2 . 1 2 2 Engine 9 | 1 2 3 . 2 . . . . . . 1 . Core 9 | . . . . . . 3 . 2 . 1 1 2 Reactor 1 | . . . . . 1 . . . . . . . Propulsion 50 | 4 2 7 1 3 9 6 4 . 1 . 2 11 Treads 28 | 2 . 7 1 3 9 . . . . . . 6 Leg 4 | 2 2 . . . . . . . . . . . Wheel 1 | . . . . . . 1 . . . . . . Hover 2 | . . . . . . . . . . . 2 . Flight 15 | . . . . . . 5 4 . 1 . . 5 Utility 76 | 2 . 9 . 3 13 9 22 5 1 2 3 7 Device 39 | 1 . 6 . 2 5 4 13 4 1 . . 3 Storage 3 | 1 . . . . 1 . . 1 . . . . Processor 6 | . . 1 . . . 1 3 . . . . 1 Hackware 11 | . . . . . . 2 3 . . 2 2 2 Protection 17 | . . 2 . 1 7 2 3 . . . 1 1 Artifact . | . . . . . . . . . . . . . Weapon 39 | 2 1 4 2 5 11 1 4 . 3 1 2 3 Energy Gun 16 | 1 . 2 2 1 5 . . . 3 . 1 1 Energy Cannon . | . . . . . . . . . . . . . Ballistic Gun 9 | 1 . 2 . 1 2 . . . . . 1 2 Ballistic Cannon 1 | . 1 . . . . . . . . . . . Launcher 3 | . . . . 1 2 . . . . . . . Special Weapon . | . . . . . . . . . . . . . Impact Weapon 4 | . . . . 2 2 . . . . . . . Slashing Weapon 4 | . . . . . . . 3 . . 1 . . Piercing Weapon 2 | . . . . . . 1 1 . . . . . Special Melee Weapon . | . . . . . . . . . . . . . Unidentified Prototypes 9 | . . . . . 1 3 1 1 1 . . 2 Parts Lost 59 | . . 5 . 3 13 . 2 . 1 4 15 16 Power 5 | . . . . . . . . . . 1 2 2 Propulsion 18 | . . . . 2 3 . . . . 2 3 8 Utility 27 | . . 4 . 1 8 . 2 . 1 . 8 3 Weapon 9 | . . 1 . . 2 . . . . 1 2 3 Highest Loss Streak 8 | . . 2 . 2 7 . 2 . 1 4 8 7 To Critical Strikes 3 | . . . . . . . . . . . . 3 Average Slot Usage (%) 90 | . 100 94 95 95 97 84 90 93 92 89 62 54 Engine 3 | . 14 11 11 9 3 . . . . . . . Core 2 | . . . . . . 6 6 6 6 5 1 4 Reactor 1 | . . . . . 5 . . . . . . . Treads 10 | . . 14 18 23 26 . . . . . . 5 Leg 1 | . 28 5 . . . . . . . . . . Flight 10 | . . . . . . 23 25 26 26 24 11 8 Device 15 | . 14 16 11 9 16 13 18 20 18 13 8 5 Storage 5 | . 14 11 11 9 9 . . . . . . . Processor 11 | . . 11 11 9 9 12 13 13 13 13 13 16 Hackware 6 | . . . . . . 11 13 13 13 23 19 5 Protection 6 | . . 3 11 18 9 4 5 6 6 1 . . Energy Gun 6 | . 2 11 22 12 9 . . . 3 . 2 . Ballistic Gun 2 | . 14 6 . 3 2 . . . . . 2 2 Impact Weapon 1 | . . . . 2 4 4 . . . . . . Slashing Weapon 1 | . . . . . . . 5 6 3 4 . . Naked Turns . | . . . . . . . . . . . . . Heaviest Build 112 | 13 15 24 24 27 112 97 18 19 24 18 12 26 Greatest Support 108 | 40 20 46 46 69 64 64 22 22 22 22 18 108 Greatest Overweight (x) 5 | . . 1 1 1 2 1 . 5 1 . 3 2 Average Overweight (x) . | . . . . . . . . . . . . . Largest Inventory Capacity 25 | 8 8 8 8 8 25 25 5 5 5 5 5 5 Average Capacity 10 | 7 8 8 8 8 23 5 5 5 5 5 5 5 Most Carried 22 | 3 8 8 8 8 22 16 5 5 5 5 5 5 Average Carried 7 | 2 7 7 7 7 15 5 4 4 5 4 4 3 Final Capacity 25 | 8 8 8 8 8 25 5 5 5 5 5 5 5 Final Carried 16 | 3 8 8 8 8 16 5 5 5 5 5 3 3 Class Distribution -------------------- 26% | Mutant 15% | Hacker-Ninja 14% | Scavenger-Mutant 9% | Commander-Mutant 7% | Hacker-Scout 5% | Commander-Ninja 4% | Infiltrator-Ninja 3% | Scavenger-Skirmisher Dominant Class ---------------- Mutant | -10/Materials Scavenger-Mutant | -9/Materials Mutant | -9/Mines Mutant | -8/Materials Commander-Mutant | -8/Storage Hacker-Ninja | -7/Factory Hacker-Ninja | -6/Factory Commander-Ninja | -6/Extension Hacker-Scout | -6/Cetus Hacker-Scout | -6/Archives Hacker-Mutant | -6/Hub_04(d) Sprinter | -5/Factory Resources | -11 -10 -9 -9 -8 -8 -7 -6 -6 -6 -6 -6 -5 ----------- Run | Yrd Mat Mat Min Mat Sto Fac Fac Ext Cet Arc Hub Fac Matter Collected 2712 | 260 146 493 50 224 632 190 290 50 55 40 121 161 Remotely . | . . . . . . . . . . . . . Salvage Created 4565 | 47 218 874 189 376 1338 85 394 466 37 137 203 201 Parts 253 | 5 13 54 11 22 62 5 34 19 3 10 9 6 Haulers Intercepted 5 | . . 2 . . 2 1 . . . . . . Recyclers Shooed 3 | . . 2 . . . . . . . . . 1 Parts Field Recycled . | . . . . . . . . . . . . . Retrieved Matter . | . . . . . . . . . . . . . Parts Self-Destructed . | . . . . . . . . . . . . . Prevented . | . . . . . . . . . . . . . Kills | -11 -10 -9 -9 -8 -8 -7 -6 -6 -6 -6 -6 -5 ------- Run | Yrd Mat Mat Min Mat Sto Fac Fac Ext Cet Arc Hub Fac Combat Hostiles Destroyed 91 | . 5 22 7 10 26 . 5 4 1 . 4 7 Melee 15 | . . . . . . . 5 4 . . . 6 Guns 55 | . 2 17 7 6 19 . . . . . 4 . Cannons 7 | . 3 4 . . . . . . . . . . AOE 9 | . . . . 4 5 . . . . . . . Classes Destroyed 15 | 1 4 5 . . 2 . 2 . . . . 1 Worker 3 | . . 1 . . 1 . 1 . . . . . Builder 8 | . 1 1 . 1 2 1 2 . . . . . Tunneler 3 | 2 . . . . . . 1 . . . . . Hauler 5 | . . 2 . . 2 1 . . . . . . Recycler 6 | . 1 . . 1 2 . . 2 . . . . Operator 3 | . . . . . 2 . 1 . . . . . Drone 1 | . . . . . . . 1 . . . . . Watcher 6 | . 1 1 . . . 1 3 . . . . . Swarmer 12 | . . 6 3 3 . . . . . . . . Grunt 47 | . 5 9 4 4 16 . 1 3 . . 2 3 Brawler 2 | . . . . . 2 . . . . . . . Duelist 4 | . . 1 . . 2 . . . . . . 1 Sentry 16 | . . 6 . 3 6 . . 1 . . . . Hunter 1 | . . . . . . . . . . . . 1 Programmer 7 | . . . . . . . 3 . . . 2 2 Cetus Guard 1 | . . . . . . . . . 1 . . . Best Kill Streak 7 | 1 4 7 3 5 6 1 2 2 1 . 2 4 Combat Bots Only 6 | . 2 6 3 4 6 . 1 2 1 . 2 4 Max Kills in Single Turn 3 | 1 1 1 2 3 3 1 1 1 1 . 1 1 Gunslinging 1 | . . . 1 . . . . . . . . . Exploded 3 | . . . . 2 3 . . . . . . . Melee 1 | . . . . . . . 1 1 . . . 1 Uniques/NPCs Destroyed 1 | . . . . . . . . . 1 . . . A7 (-6/Cetus) Combat | -11 -10 -9 -9 -8 -8 -7 -6 -6 -6 -6 -6 -5 -------- Run | Yrd Mat Mat Min Mat Sto Fac Fac Ext Cet Arc Hub Fac Hostile Shots Fired 1106 | . 29 130 35 58 165 65 85 33 7 . 117 382 Missed 376 | . 7 26 8 13 38 45 44 15 1 . 41 138 Damage Taken 11997 | . 295 1220 309 646 2543 206 603 183 157 222 1345 4268 Core 2397 | . 40 172 44 69 175 64 193 52 . 74 506 1008 Absorbed by Shields 114 | . . . . . . . . 71 . . . 43 Regen/Repaired (Parts) 411 | . . 40 . . 88 . 241 . . . . 42 Core Remaining (%) 62 | 100 84 . 46 . 55 90 . . . . 2 . Volleys Fired 251 | 4 25 64 12 24 69 . . . 12 . 30 11 Largest 2 | 2 2 2 2 2 2 . . . 1 . 1 2 Hottest 126 | 60 55 126 126 126 126 . . . 80 . 80 108 Shots Fired 426 | 8 50 126 24 41 122 . . . 12 . 30 13 Gun 366 | 8 25 108 24 34 112 . . . 12 . 30 13 Cannon 43 | . 25 18 . . . . . . . . . . Launcher 17 | . . . . 7 10 . . . . . . . Special . | . . . . . . . . . . . . . Kinetic 193 | 4 50 76 . 8 34 . . . . . 19 2 Thermal 216 | 4 . 50 24 26 78 . . . 12 . 11 11 Explosive 17 | . . . . 7 10 . . . . . . . Electromagnetic . | . . . . . . . . . . . . . Robot Hit Streak 21 | 6 11 11 6 4 18 . . . 21 . 13 9 Robot Miss Streak 9 | . 2 9 2 3 2 . . . 1 . 4 4 Penetration Max . | . . . . . . . . . . . . . Secondary Targets 4 | . . 1 1 . 2 . . . . . . . Max Gunslinging Chain 1 | . . 1 1 . 1 . . . . . . . Shots Hit Robots 378 | 6 36 92 16 24 111 3 25 15 11 6 24 9 Core Hits 210 | 2 17 45 8 19 78 1 10 6 3 2 9 10 Critical Kills 1 | . . . . . 1 . . . . . . . Critical Parts Destroyed 2 | . . . . . 2 . . . . . . . Critical Strikes 15 | . 2 2 . 1 6 . 2 1 1 . . . Burn 6 | . . 1 . 1 3 . . . 1 . . . Destroy 1 | . . . . . 1 . . . . . . . Blast 3 | . 2 1 . . . . . . . . . . Smash 2 | . . . . . 2 . . . . . . . Sever 3 | . . . . . . . 2 1 . . . . Melee Attacks 132 | . . . . 1 22 16 67 20 . 6 . . Impact 34 | . . . . 1 22 11 . . . . . . Slashing 86 | . . . . . . . 60 20 . 6 . . Piercing 12 | . . . . . . 5 7 . . . . . Sneak Attacks 19 | . . . . . 6 2 5 6 . . . . Combat Hostiles 3 | . . . . . . . . 3 . . . . Follow-up Attacks . | . . . . . . . . . . . . . Damage Inflicted 10881 | 59 496 1352 272 767 3652 179 1421 846 251 647 622 317 Guns 5027 | 59 137 1208 272 421 1840 . . . 251 . 586 253 Cannons 503 | . 359 144 . . . . . . . . . . Explosions 1465 | . . . . 346 1119 . . . . . . . Melee 3786 | . . . . . 693 179 1421 846 . 647 . . Ramming 100 | . . . . . . . . . . . 36 64 Kinetic 2424 | 15 496 690 . 116 675 . . . . . 432 . Thermal 3106 | 44 . 662 272 305 1165 . . . 251 . 154 253 Explosive 1465 | . . . . 346 1119 . . . . . . . Electromagnetic . | . . . . . . . . . . . . . Impact 811 | . . . . . 693 118 . . . . . . Slashing 2914 | . . . . . . . 1421 846 . 647 . . Piercing 61 | . . . . . . 61 . . . . . . Highest Corruption 6 | . 1 . . 1 2 . 1 . . . 5 6 Average Corruption 1 | . 1 . . 1 1 . 1 . . . 5 5 Corruption Purged 2 | . . . . . . . 2 . . . . . Corruption Blocked . | . . . . . . . . . . . . . Effects 44 | . . . . 3 31 . 3 . . . . 7 Message Errors 5 | . . . . . 4 . 1 . . . . . Matter Fused 15 | . . . . 1 11 . 1 . . . . 2 Heat Flow Errors 2 | . . . . . 2 . . . . . . . Energy Discharges 6 | . . . . 2 4 . . . . . . . Parts Rejected 2 | . . . . . 1 . . . . . . 1 Parts Fused 1 | . . . . . 1 . . . . . . . Data Loss (minor) 8 | . . . . . 5 . . . . . . 3 Data Loss (major) 2 | . . . . . . . 1 . . . . 1 Misfires 1 | . . . . . 1 . . . . . . . Alerts 1 | . . . . . 1 . . . . . . . Weapon Failures 1 | . . . . . 1 . . . . . . . Overload Shots . | . . . . . . . . . . . . . Overflow Damage 891 | . 6 . . 32 199 61 276 52 . 265 . . Projectiles 6 | . 6 . . . . . . . . . . . Explosions 53 | . . . . 32 21 . . . . . . . Melee 832 | . . . . . 178 61 276 52 . 265 . . Knockbacks 8 | . 4 3 . . 1 . . . . . . . Impact 1 | . . . . . 1 . . . . . . . Kinetic 7 | . 4 3 . . . . . . . . . . Secondary . | . . . . . . . . . . . . . Self-Inflicted Damage 145 | . . . . 61 60 . . . . . 16 8 Shots 5 | . . . . 3 2 . . . . . . . Rammed 58 | . . . . . . . . . . . 4 54 Targets Rammed 64 | . . . . . . . . . . . 4 60 Kicked . | . . . . . . . . . . . . . Crushed 6 | . . . . . . . . . . . . 6 Highest Temperature 432 | 20 66 200 432 345 198 9 13 10 324 . 264 180 Average Temperature 105 | 13 28 52 179 190 48 4 5 10 138 . 129 87 Received Heat Transfer 3184 | . 165 312 162 207 1008 69 159 76 54 . 459 513 Effects 4 | . . . 1 1 . . . . 2 . . . Shutdowns 1 | . . . 1 . . . . . . . . . Short Circuit 2 | . . . . 1 . . . . 1 . . . Damage (minor) 1 | . . . . . . . . . 1 . . . Siege Activations . | . . . . . . . . . . . . . Robots Corrupted . | . . . . . . . . . . . . . Combat Hostiles . | . . . . . . . . . . . . . Parts Fried 4 | . . . . . 2 2 . . . . . . Impact Corruptions 9 | . . . . . 7 2 . . . . . . Robots Melted 3 | . . 1 . . . . . . 1 . . 1 Combat Hostiles 3 | . . 1 . . . . . . 1 . . 1 Parts Melted 14 | . . 4 2 1 4 . . . . . . 3 Heat Transferred 6705 | 100 . 1517 592 740 2720 . . . 481 . 222 333 Parts Sabotaged . | . . . . . . . . . . . . . Parts Stolen . | . . . . . . . . . . . . . Parts Stripped . | . . . . . . . . . . . . . Power Chain Reactions . | . . . . . . . . . . . . . Alert | -11 -10 -9 -9 -8 -8 -7 -6 -6 -6 -6 -6 -5 ------- Run | Yrd Mat Mat Min Mat Sto Fac Fac Ext Cet Arc Hub Fac Peak Influence 550 | 10 209 494 125 351 550 213 252 351 181 397 182 180 Initial 146 | . 6 87 52 . 21 146 . 27 32 72 96 79 Average 165 | 3 89 220 60 160 386 135 68 61 122 232 51 75 Maximum Alert Level 2 | . 1 2 . 1 2 1 1 1 . 1 . . Low Security (%) 69 | 100 75 55 100 46 4 92 98 97 100 44 100 100 Level 1 16 | . 24 32 . 53 39 7 1 2 . 55 . . Level 2 13 | . . 12 . . 55 . . . . . . . Level 3 . | . . . . . . . . . . . . . Level 4 . | . . . . . . . . . . . . . Level 5 . | . . . . . . . . . . . . . High Security . | . . . . . . . . . . . . . Max Security . | . . . . . . . . . . . . . Squads Dispatched 39 | . . 3 . 1 9 4 11 . 1 . 6 4 Investigation 27 | . . 3 . 1 3 3 8 . 1 . 4 4 Extermination 5 | . . . . . . 1 3 . . . 1 . Reinforcement 4 | . . . . . 3 . . . . . 1 . Assault 3 | . . . . . 3 . . . . . . . Garrison . | . . . . . . . . . . . . . Intercept . | . . . . . . . . . . . . . Searches Triggered . | . . . . . . . . . . . . . Construction Impeded . | . . . . . . . . . . . . . Haulers Reinforced . | . . . . . . . . . . . . . Active Scanning Responses . | . . . . . . . . . . . . . Cargo Convoy Interrupts . | . . . . . . . . . . . . . Stealth | -11 -10 -9 -9 -8 -8 -7 -6 -6 -6 -6 -6 -5 --------- Run | Yrd Mat Mat Min Mat Sto Fac Fac Ext Cet Arc Hub Fac Distress Signals 24 | . 2 4 . . 8 . 5 1 1 . . 3 Communications Jammed 4 | . . . . . . 1 3 . . . . . Distress Signals 1 | . . . . . . 1 . . . . . . Times Spotted 299 | . 12 37 8 14 57 17 45 19 6 10 18 56 Peak Tracking Total 14 | . 5 8 3 4 9 6 9 6 3 14 11 12 Tactical Retreats 39 | . 1 2 1 1 2 5 16 . . . 1 10 Traps | -11 -10 -9 -9 -8 -8 -7 -6 -6 -6 -6 -6 -5 ------- Run | Yrd Mat Mat Min Mat Sto Fac Fac Ext Cet Arc Hub Fac Traps Triggered 12 | . 2 2 . . 1 . 2 3 . . . 2 Indirectly . | . . . . . . . . . . . . . Trap Hack Attempts . | . . . . . . . . . . . . . Triggered . | . . . . . . . . . . . . . Disarmed . | . . . . . . . . . . . . . Reprogrammed . | . . . . . . . . . . . . . Reused . | . . . . . . . . . . . . . Traps Extracted . | . . . . . . . . . . . . . Installed . | . . . . . . . . . . . . . Triggered . | . . . . . . . . . . . . . Machines | -11 -10 -9 -9 -8 -8 -7 -6 -6 -6 -6 -6 -5 ---------- Run | Yrd Mat Mat Min Mat Sto Fac Fac Ext Cet Arc Hub Fac Machines Disabled 11 | . . 1 . 1 3 . 1 4 . . 1 . Max in Single Turn 1 | . . 1 . 1 1 . 1 1 . . 1 . Garrison Access 2 | . . . . . . 2 . . . . . . Network Hub 2 | . . . . . . . . . . . 2 . Machines Repaired . | . . . . . . . . . . . . . Machines Dismantled . | . . . . . . . . . . . . . Machines Sabotaged 2 | . . . . . . . . . . . 2 . Overloaded Fab Kills . | . . . . . . . . . . . . . Hacking | -11 -10 -9 -9 -8 -8 -7 -6 -6 -6 -6 -6 -5 --------- Run | Yrd Mat Mat Min Mat Sto Fac Fac Ext Cet Arc Hub Fac Machines Accessed 102 | . 2 10 1 3 13 15 27 12 3 . 5 11 Terminals 72 | . 2 7 1 3 10 9 16 11 3 . 5 5 Fabricators 9 | . . . . . . . 4 . . . . 5 Repair Stations 6 | . . 1 . . 1 . 3 . . . . 1 Recycling Units 7 | . . 1 . . 2 1 2 1 . . . . Scanalyzers 6 | . . 1 . . . 3 2 . . . . . Garrison Access 2 | . . . . . . 2 . . . . . . Total Hacks 326 | . 7 31 3 8 40 45 90 30 8 . 27 37 Successful 179 | . 2 16 1 4 23 24 50 18 2 . 17 22 Failed 147 | . 5 15 2 4 17 21 40 12 6 . 10 15 Catastrophic 20 | . . . 2 1 1 1 7 . 2 . 2 4 Database Lockouts . | . . . . . . . . . . . . . Manual 154 | . 5 11 3 3 25 20 41 9 1 . 14 22 Terminals 244 | . 7 24 3 8 32 30 54 28 8 . 27 23 Fabricators 29 | . . . . . . . 17 . . . . 12 Repair Stations 20 | . . 3 . . 2 . 13 . . . . 2 Recycling Units 14 | . . 1 . . 6 2 3 2 . . . . Scanalyzers 15 | . . 3 . . . 9 3 . . . . . Garrison Access 4 | . . . . . . 4 . . . . . . Terminal Hacks 80 | . . 7 . 3 10 9 19 12 2 . 10 8 Record 1 | . . . . . . . . . 1 . . . Part Schematic 8 | . . . . . . . 8 . . . . . Prototype ID Bank 1 | . . . . . . . 1 . . . . . Open Door 10 | . . . . . 2 . 2 5 1 . . . Open DSF 1 | . . . . . . 1 . . . . . . Level Access Points 2 | . . . . . 1 . . . . . 1 . Branch Access Points 2 | . . 1 . . . . 1 . . . . . Emergency Access Points 1 | . . . . . . . . . . . 1 . Terminal Index 8 | . . 1 . 1 1 1 1 1 . . 1 1 Fabricator Index 4 | . . . . . . 1 1 . . . 1 1 Repair Station Index 1 | . . . . . . . . . . . 1 . Recycling Unit Index 1 | . . . . . . . . . . . 1 . Alert Level 5 | . . 1 . . . 1 1 1 . . 1 . Unreport Threat 16 | . . 2 . 2 2 3 1 3 . . 1 2 Locate Traps 4 | . . 1 . . 2 1 . . . . . . Maintenance Status 1 | . . . . . . . . . . . . 1 Recall Extermination 1 | . . . . . . 1 . . . . . . Registered Components 3 | . . 1 . . . . 1 . . . . 1 Registered Prototypes 2 | . . . . . . . . 1 . . 1 . Zone Layout 8 | . . . . . 2 . 2 1 . . 1 2 Fabricator Hacks 12 | . . . . . . . 7 . . . . 5 Load Schematic 7 | . . . . . . . 4 . . . . 3 Build 5 | . . . . . . . 3 . . . . 2 Repair Station Hacks 17 | . . 2 . . 2 . 11 . . . . 2 Scan Component 9 | . . 1 . . 1 . 6 . . . . 1 Repair 8 | . . 1 . . 1 . 5 . . . . 1 Recycling Unit Hacks 8 | . . 1 . . 3 1 2 1 . . . . Retrieve Components 8 | . . 1 . . 3 1 2 1 . . . . Scanalyzer 10 | . . 2 . . . 7 1 . . . . . Insert Component 5 | . . 1 . . . 3 1 . . . . . Analyze 5 | . . 1 . . . 4 . . . . . . Garrison Access Hacks 2 | . . . . . . 2 . . . . . . Seal Access 2 | . . . . . . 2 . . . . . . Unauthorized Hacks 50 | . 2 4 1 1 8 5 10 5 . . 7 7 Terminals 42 | . 2 4 1 1 6 5 7 5 . . 7 4 Track 2 | . . . . . . . 1 . . . . 1 Assimilate 8 | . . 1 . . . 1 2 2 . . 2 . Botnet 25 | . 1 2 1 1 5 4 4 3 . . 2 2 Operators 4 | . 1 1 . . 1 . . . . . . 1 Sabotage 3 | . . . . . . . . . . . 3 . Fabricators 6 | . . . . . . . 3 . . . . 3 Report 1 | . . . . . . . 1 . . . . . Prioritize 2 | . . . . . . . 2 . . . . . Recompile 3 | . . . . . . . . . . . . 3 Repair Stations . | . . . . . . . . . . . . . Recycling Units 2 | . . . . . 2 . . . . . . . Reject 1 | . . . . . 1 . . . . . . . Mask 1 | . . . . . 1 . . . . . . . Scanalyzers . | . . . . . . . . . . . . . Garrison Access . | . . . . . . . . . . . . . Data Cores Recovered 1 | . . . . . . . . 1 . . . . Used . | . . . . . . . . . . . . . Hacking Detections 81 | . 2 8 1 3 11 13 22 8 2 . 4 7 Full Trace Events 17 | . . 1 . 1 1 3 8 . 1 . 1 1 Feedback Events 4 | . . . . 1 1 . 1 . . . . 1 Corruption 4 | . . . . 1 1 . 1 . . . . 1 Feedback Blocked . | . . . . . . . . . . . . . Robot Schematics Acquired . | . . . . . . . . . . . . . Robots Built . | . . . . . . . . . . . . . Authchips . | . . . . . . . . . . . . . Time . | . . . . . . . . . . . . . Total Robot Build Rating . | . . . . . . . . . . . . . Part Schematics Acquired 12 | . . 1 . . . 3 8 . . . . . Parts Built 5 | . . . . . . . 3 . . . . 2 Authchips 1 | . . . . . . . . . . . . 1 Time 323 | . . . . . . . 159 . . . . 164 Total Part Build Rating 33 | . . . . . . . 18 . . . . 15 Parts Repaired 8 | . . 1 . . 1 . 5 . . . . 1 Time 318 | . . 32 . . 26 . 230 . . . . 30 Parts Recycled . | . . . . . . . . . . . . . Recycled Matter . | . . . . . . . . . . . . . Retrieved Matter . | . . . . . . . . . . . . . Retrieved Components 32 | . . 10 . . 19 . 3 . . . . . Parts Scanalyzed 5 | . . 1 . . . 3 1 . . . . . Part Schematics Acquired 4 | . . 1 . . . 3 . . . . . . Parts Damaged 1 | . . . . . . . 1 . . . . . Bothacking | -11 -10 -9 -9 -8 -8 -7 -6 -6 -6 -6 -6 -5 ------------ Run | Yrd Mat Mat Min Mat Sto Fac Fac Ext Cet Arc Hub Fac Used RIF Installer . | . . . . . . . . . . . . . Robots Hacked . | . . . . . . . . . . . . . Non-combat . | . . . . . . . . . . . . . Combat . | . . . . . . . . . . . . . Robot Hacks Applied . | . . . . . . . . . . . . . Relay Couplers Released . | . . . . . . . . . . . . . Fabnet Peak Effective % . | . . . . . . . . . . . . . Robots Rewired 10 | . . . . . . . . 10 . . . . Allies Hacked . | . . . . . . . . . . . . . Hacks Repelled . | . . . . . . . . . . . . . Allies | -11 -10 -9 -9 -8 -8 -7 -6 -6 -6 -6 -6 -5 -------- Run | Yrd Mat Mat Min Mat Sto Fac Fac Ext Cet Arc Hub Fac Total Allies 40 | . . . 3 . 12 1 1 17 5 . 1 . Largest Group 10 | . . . 3 3 10 1 1 9 7 6 1 . Highest-Rated Group 519 | . . . 40 40 173 10 10 395 519 519 10 . Highest-Rated Ally 159 | . . . 16 16 31 10 10 159 159 96 10 . Total Orders 2 | . . . . . 1 . . . . 1 . . STAY 1 | . . . . . 1 . . . . . . . FOLLOW 1 | . . . . . . . . . . 1 . . Ally Attacks 330 | . . . . 8 117 . . 138 45 22 . . Total Damage 7070 | . . . . 59 1617 . . 3340 1279 775 . . Kills 58 | . . . . . 18 . . 25 8 7 . . Allies Corrupted 1 | . . . . . . . . 1 . . . . Allies Melted . | . . . . . . . . . . . . . Intel | -11 -10 -9 -9 -8 -8 -7 -6 -6 -6 -6 -6 -5 ------- Run | Yrd Mat Mat Min Mat Sto Fac Fac Ext Cet Arc Hub Fac Robot Analysis Total . | . . . . . . . . . . . . . Derelict Logs Recovered 2 | . . . 2 . . . . . . . . . Drone Launches . | . . . . . . . . . . . . . Drone Recoveries . | . . . . . . . . . . . . . Exploration | -11 -10 -9 -9 -8 -8 -7 -6 -6 -6 -6 -6 -5 ------------- Run | Yrd Mat Mat Min Mat Sto Fac Fac Ext Cet Arc Hub Fac Turns Passed 10134 | 117 322 1281 910 385 2229 481 1884 1154 265 87 399 620 Spaces Moved 8176 | 57 178 627 442 166 763 1235 2547 935 148 130 205 743 Core 120 | 3 . . . . . . . 6 . . 97 14 Treads 1925 | 51 . 422 442 166 763 4 . . . . . 77 Legs 386 | 3 178 205 . . . . . . . . . . Wheels . | . . . . . . . . . . . . . Hover 12 | . . . . . . . . . . . 12 . Flight 5733 | . . . . . . 1231 2547 929 148 130 96 652 Fastest Speed 27 | 50 120 120 160 160 163 27 27 28 28 28 34 30 Average Speed 74 | 152 120 152 185 164 240 29 27 29 28 29 72 47 Slowest Speed 330 | 160 120 240 240 240 330 233 28 300 99 34 200 195 Overloaded Moves . | . . . . . . . . . . . . . Propulsion Burnouts . | . . . . . . . . . . . . . Robots Hopped 17 | . . . . . . 1 6 . . . 2 8 Cave-ins Triggered . | . . . . . . . . . . . . . Exploration Rate (%) 55 | 5 39 59 94 16 96 35 64 98 79 91 24 23 Regions Visited 12 Branch Regions 6 Pre-discovered Areas . | . . . . . . . . . . . . . Known Exits Taken 10 | . . 1 1 1 1 1 1 1 1 1 1 . Unknown Exits Taken 2 | 1 1 . . . . . . . . . . . Scrap Searched 4 | . . . 4 . . . . . . . . . Spaces Dug 53 | . . . . 1 4 11 36 1 . . . . Terrain Destroyed 186 | . . . . 60 75 11 36 1 1 . 1 1 Melee 53 | . . . . 1 4 11 36 1 . . . . Projectile 3 | . . . . . . . . . 1 . 1 1 AOE 130 | . . . . 59 71 . . . . . . . Terrain Rammed . | . . . . . . . . . . . . . Walls Destroyed . | . . . . . . . . . . . . . Machines Disabled . | . . . . . . . . . . . . . Actions | -11 -10 -9 -9 -8 -8 -7 -6 -6 -6 -6 -6 -5 --------- Run | Yrd Mat Mat Min Mat Sto Fac Fac Ext Cet Arc Hub Fac Total 11499 | 75 241 835 510 235 993 1324 3623 1779 356 168 420 940 Wait 2447 | 3 23 87 49 20 81 32 960 721 189 23 173 86 Move 8132 | 56 177 626 441 165 762 1232 2534 934 147 129 201 728 Hop 16 | . . . . . . 1 6 . . . 2 7 Pick Up 76 | 3 7 16 3 5 18 5 9 2 . 2 2 4 Fast Attach 75 | 7 2 6 . 4 7 6 13 2 3 2 4 19 Attach 41 | . . 6 1 2 10 7 7 . . . 4 4 Detach 6 | . . . . 1 . 1 3 . 1 . . . Swap 68 | 2 3 11 2 7 17 6 10 5 2 2 1 . Drop 83 | . 4 19 2 6 7 18 14 5 2 4 . 2 Fire 251 | 4 25 64 12 24 69 . . . 12 . 30 11 Melee 132 | . . . . 1 22 16 67 20 . 6 . . Ram 6 | . . . . . . . . . . . 3 3 Kick . | . . . . . . . . . . . . . Crush 57 | . . . . . . . . . . . . 57 Escape Stasis 49 | . . . . . . . . 30 . . . 19 Rewire 60 | . . . . . . . . 60 . . . . Trap . | . . . . . . . . . . . . . Miscellaneous . | . . . . . . . . . . . . . Route ------- -11/Scrapyard -10/Materials -9/Materials (discovered 3 exits: *Mat x2 / *Min) -9/Mines (discovered 2 exits: *Mat x2) -8/Materials (discovered 2 exits: Fac / *Sto) -8/Storage -7/Factory (discovered 2 exits: *Fac / *Low) -6/Factory (discovered 7 exits: *Fac x3 / *Low x2 / *Ext x2) -6/Extension (discovered 2 exits: *Fac / *Cet) -6/Cetus -6/Archives (discovered 3 exits: *Fac / *Hub x2) -6/Hub_04(d) (discovered 4 exits: *Fac x4) -5/Factory History --------- Turn | Location | Event 15 | -11/Scrapyard | Discovered new exit (range 16) 118 | -11/Scrapyard | Entered Materials 315 | -10/Materials | Build established: Mutant 419 | -10/Materials | Discovered new exit (range 10) 440 | -10/Materials | Entered another Materials area 440 | -9/Materials | Evolved 2 slots: Utility x2 744 | -9/Materials | Build established: Scavenger-Skirmisher 806 | -9/Materials | Identified exit to Mines 1091 | -9/Materials | Build established: Scavenger-Mutant 1094 | -9/Materials | Discovered new exit (range 4) 1551 | -9/Materials | Discovered new exit (range 4) 1626 | -9/Materials | Repaired Imp. Ion Engine? 1680 | -9/Materials | Build established: Mutant 1721 | -9/Materials | Entered Mines 1733 | -9/Mines | Met a Derelict bent on vengeance 2238 | -9/Mines | Core integrity fell below 50% 2416 | -9/Mines | Assisted by bots powering up and referring to "LRC-V3" 2432 | -9/Mines | Learned location of 1 exit from Materials 2465 | -9/Mines | Discovered new exit (range 14) 2606 | -9/Mines | Learned Materials stockpile data 2617 | -9/Mines | Discovered new exit (range 6) 2623 | -9/Mines | Identified exit to Materials 2631 | -9/Mines | Entered Materials 2631 | -8/Materials | Accompanied by 3 allies 2631 | -8/Materials | Evolved 2 slots: Propulsion x1, Utility x1 2632 | -8/Materials | Identified exit to Factory 2708 | -8/Materials | Lost 3 allies 2856 | -8/Materials | Discovered new exit (range 16) 2967 | -8/Materials | Identified exit to Storage 3016 | -8/Materials | Entered Storage 3028 | -8/Storage | Met a pair of Derelict thieves 3209 | -8/Storage | Build established: Scavenger-Mutant 3308 | -8/Storage | Repaired Lgt. Armor Plating 4088 | -8/Storage | Build established: Mutant 4110 | -8/Storage | Assisted by bots powering up and referring to "LRC-V3" 4400 | -8/Storage | Build established: Commander-Mutant 5016 | -8/Storage | First assault squad dispatched 5106 | -8/Storage | Lost 6 allies 5173 | -8/Storage | Lost 7 parts (2n4u1w) 5245 | -8/Storage | Entered Factory 5245 | -7/Factory | Evolved 2 slots: Propulsion x1, Utility x1 5525 | -7/Factory | Discovered new exit (range 6) 5528 | -7/Factory | Identified exit to Lower Caves 5723 | -7/Factory | Discovered new exit (range 9) 5725 | -7/Factory | Identified exit to Factory 5726 | -7/Factory | Entered another Factory area 5726 | -6/Factory | Evolved 2 slots: Utility x2 5752 | -6/Factory | Discovered new exit (range 16) 5764 | -6/Factory | Identified exit to Factory 5787 | -6/Factory | Discovered new exit (range 10) 5789 | -6/Factory | Identified exit to Lower Caves 5799 | -6/Factory | Discovered new exit (range 10) 5801 | -6/Factory | Identified exit to Extension 6033 | -6/Factory | Build established: Hacker-Ninja 6216 | -6/Factory | Discovered exit to Factory (range 7) 6256 | -6/Factory | Discovered exit to Factory (range 13) 6269 | -6/Factory | Fabricated Adv. Hacking Suite (x1) 6311 | -6/Factory | Spotted B-75 Beast 6315 | -6/Factory | Fabricated Adv. Hacking Suite (x1) 6350 | -6/Factory | Repaired Broken Mic. Nuclear Core? 6389 | -6/Factory | Fabricated Adv. Hacking Suite (x1) 6581 | -6/Factory | Repaired Imp. VTOL Module 6628 | -6/Factory | Repaired Lyr. Light Armor Plating 6700 | -6/Factory | Repaired Imp. Cesium-ion Thruster 6915 | -6/Factory | Repaired Structural Scanner 7610 | -6/Factory | Entered Extension 7804 | -6/Extension | Rescued a captive Derelict 7906 | -6/Extension | Rescued A7 7955 | -6/Extension | Rescued a captive Derelict 7956 | -6/Extension | Rescued a captive Derelict 8082 | -6/Extension | Build established: Commander-Ninja 8247 | -6/Extension | Spotted B-75 Beast 8287 | -6/Extension | Spotted B-75 Beast 8295 | -6/Extension | Allies destroyed B-75 Beast 8315 | -6/Extension | Allies destroyed B-75 Beast 8348 | -6/Extension | Lost 5 allies 8612 | -6/Extension | Rescued a captive Derelict 8618 | -6/Extension | Rescued a captive Derelict 8619 | -6/Extension | Rescued a captive Derelict 8626 | -6/Extension | Lost 4 allies 8676 | -6/Extension | Discovered exit to Factory (range 10) 8676 | -6/Extension | Discovered new exit (range 6) 8737 | -6/Extension | Identified exit to Cetus 8764 | -6/Extension | Entered Cetus 8764 | -6/Cetus | Accompanied by 7 allies (A7) 8769 | -6/Cetus | Acquired a Cetus Manufacturing Module code from A7 8772 | -6/Cetus | Spotted Cetus Guard 8772 | -6/Cetus | Spotted Cetus Guard 8773 | -6/Cetus | Spotted Cetus Guard 8776 | -6/Cetus | Spotted Cetus Guard 8783 | -6/Cetus | Allies destroyed Cetus Guard 8797 | -6/Cetus | Destroyed Cetus Guard 8803 | -6/Cetus | Allies destroyed Cetus Guard 8807 | -6/Cetus | Allies destroyed Cetus Guard 8816 | -6/Cetus | Lost 3 allies 8862 | -6/Cetus | Started Cetus Manufacturing Module 8887 | -6/Cetus | Manufactured an Enhanced Grunt 8897 | -6/Cetus | Escorted A7 to Cetus Mainframe 8912 | -6/Cetus | Manufactured an Enhanced Grunt 8917 | -6/Cetus | Allies destroyed A7 8929 | -6/Cetus | Extracted ID and sensor layout for unrecognized location from A7's data core 8937 | -6/Cetus | Manufactured an Enhanced Grunt 8953 | -6/Cetus | Lost 3 allies 8956 | -6/Cetus | Discovered new exit (range 22) 8962 | -6/Cetus | Manufactured an Enhanced Grunt 8987 | -6/Cetus | Manufactured an Enhanced Grunt 9023 | -6/Cetus | Identified exit to Archives 9029 | -6/Cetus | Entered Archives 9029 | -6/Archives | Accompanied by 6 allies 9033 | -6/Archives | Met Zhirov 9039 | -6/Archives | Reinforcements dispatched to Archives 9042 | -6/Archives | Discovered new exit (range 22) 9074 | -6/Archives | Discovered new exit (range 22) 9075 | -6/Archives | Discovered exit to Factory (range 21) 9084 | -6/Archives | Reinforcements dispatched to Archives 9086 | -6/Archives | Zhirov warped through subspace 9088 | -6/Archives | Identified exit to Hub_04(d) 9104 | -6/Archives | Zhirov detonated Archives 9116 | -6/Archives | Entered Hub_04(d) 9135 | -6/Hub_04(d) | Lost 4 parts (1p2n1w) 9135 | -6/Hub_04(d) | Lost 6 allies 9308 | -6/Hub_04(d) | Core integrity fell below 50% 9353 | -6/Hub_04(d) | Lost 5 parts (1p3u1w) 9411 | -6/Hub_04(d) | Network Hub disabled 9425 | -6/Hub_04(d) | Network Hub disabled 9478 | -6/Hub_04(d) | Core integrity fell below 20% 9510 | -6/Hub_04(d) | Lost 8 parts (1p3n3u1w) 9515 | -6/Hub_04(d) | Entered Factory 9515 | -5/Factory | Evolved 2 slots: Power x1, Propulsion x1 9524 | -5/Factory | Spotted B-75 Beast 9613 | -5/Factory | Repaired Imp. VTOL Module 9883 | -5/Factory | Fabricated Adv. Hacking Suite? 9914 | -5/Factory | Lost 5 parts (2n1u2w) 9926 | -5/Factory | Fabricated Exp. Q-thruster? 10022 | -5/Factory | Core integrity fell below 50% 10067 | -5/Factory | Lost 7 parts (5n2u) 10088 | -5/Factory | Core integrity fell below 20% 10135 | -5/Factory | Destroyed by H-66 Slayer with Gauss Rifle Last Messages --------------- K-01 Serf collects debris. M-28 Smith repairs S-27 Virus. K-01 Serf cleans the Subcomponent Replicator. M-28 Smith repairs VTOL Module. K-01 Serf cleans the Subcomponent Replicator. System corrupted: Component data lost. K-01 Serf cleans the Terminal. M-28 Smith repairs A-15 Conveyor. K-01 Serf cleans the Neutrino Reactor. Critical hit (Burn: +37). K-01 Serf cleans the Neutrino Reactor. Slug penetrates Wall. Penetrated by Slug. Slug penetrates Wall. K-01 Serf cleans the Neutrino Reactor. Slammed into R-10 Processor. K-01 Serf cleans the Neutrino Reactor. Penetrated by Slug. Arm. Medium Treads destroyed. Slug penetrates Wall. Map ----- +----------------------------------------------------+ | ########/????????????????????????????????????????? | | ## ????????????????????????????????????????? | | ?????????????????????????????????????????????????? | | ## ??????????????????????????????????????????????? | | + ??????????????????????????????????????????????? | | ## ??????????????????????????????????????????????? | | #????????????????????????????????????????????????? | | ?????????????????????????????????????????????????? | | ????????????????????#########+###????????????????? | | ????????????????????# ?????????????????? | | ????????????????????# ??????????????????! | | ????????????????????# ???????????????????? | | ######??############# ????????????????????? | | ######### # ?????????????????????? | | / """ """ # #??????????????????????? | | ######### """ """ # #??????????????????????? | | ######??# """ """ #k #??????????????????????? | | ????????# s # #??????????????????????? | | ????????# """ """ s# h #??????????????????????? | | ????????# """ """ / #??????????????????????? | | ????????# """ """ # #??????????????????????? | | ????????# # #??????????????????????? | | ????????# """ """ |# #????=?????????????????? | | ????????# """ """ # #??????????????????????? | | ????????# """ """ # #??????????????????????? | | ????????# + @#??????????????????????? | | ????????############# +??????????????????????? | | ????????????????????# #??????????????????????? | | ????????????????????# #??????????????????????? | | ????????????????????# #??????????????????????? | | ??????????????????? #??????????????????????? | | ?????????????????? #??????????????????????? | | ????????????????? #??????????????????????? | | ???????????????? +??????????????????????? | | ???????????????""""""""" k#??????????????????????? | | ?????????????? """"""""" #??????????????????????? | | ?????????????" """"""""" #??????????????????????? | | ?????????????????""""""" #??????????????????????? | | ??????????????????????"" #??????????????????????? | | ???????????????????????" #??????????????????????? | | ??????????????????????? #??????????????????????? | | ??????????????????????? #??????????????????????? | | ???????????????????????###???????????????????????? | | ?????????????????????????????????????????????????? | | ?????????????????????????????????????????????????? | | ?????????????????????????????????????????????????? | | ?????????????????????????????????????????????????? | | ?????????????????????????????????????????????????? | | ?????????????????????????????????????????????????? | | ?????????????????????????????????????????????????? | +----------------------------------------------------+ Best States ------------- Heat Dissipation 59 Energy Generation 25 Energy Capacity 300 Matter Stores 300 Matter Capacity 300 Sight Range 22 Robot Scan Range 16 Terrain Scan Density 10 ECM Strength 1 Jamming Range 12 Armor Coverage 600 Evasion (%) 64 Recoil Reduction 4 Offensive Hacking 40 Defensive Hacking 12 Authchip Count 3 Item Schematics ----------------- Grenade Launcher | -9/Materials | Scanalyzed Hacking Suite | -7/Factory | Scanalyzed System Shield | -7/Factory | Scanalyzed Machine Analyzer | -7/Factory | Scanalyzed Adv. Sensor Array | -6/Factory | Hacked Exp. Cooling System | -6/Factory | Hacked Imp. Transmission Jammer | -6/Factory | Hacked Adv. Hacking Suite | -6/Factory | Hacked Adv. System Shield | -6/Factory | Hacked Imp. Flight Unit | -6/Factory | Hacked Enh. Optical Array | -6/Factory | Hacked Adv. Thermal Shield | -6/Factory | Hacked Robot Schematics ------------------ None Fabricated ------------ Adv. Hacking Suite | x1 | -6/Factory Adv. Hacking Suite | x1 | -6/Factory Adv. Hacking Suite | x1 | -6/Factory Adv. Hacking Suite | x1 | -5/Factory | Authchip Exp. Q-thruster | x1 | -5/Factory | Preloaded Alien Tech Used ----------------- None Achievements -------------- None Challenges ------------ None Game ------ Seed InertialSingularityAirjet Manual? 0 Play Time 02:06:54 Cumulative 113.6 hours Start 2024.06.07 @ 12:24:12 End 2024.06.07 @ 14:41:16 Sessions 1 Manual Loads 0 Difficulty Rogue Special Mode None Game No. 89 Rogue 89 Adventurer 0 Explorer 0 Win Type - Total 0 Types 0/0/0/0/0/0/0/0/0 Lore% 25 Gallery% 44 Achievement% 33 Wizard Run 0 Options --------- Layout 1 ASCII 0 Keyboard 0 Movement Mouse Keybinds 0 Fullscreen 1 Font 24/Smallcaps Map View 50x35 Zoom Use 0% Tactical HUD 0 Map Filters NONE Filters NONE Steam 1 RUN: b2cc54a8-7c87-4801-879d-783f0aaac200